[Event "10th Amsterdam Science Park 2022"]
[Site "Amsterdam"]
[Date "2022.07.21"]
[Round "4.8"]
[White "Dekker, Constantijn"]
[Black "Tan, Kevin"]
[Result "1/2-1/2"]
[ECO "D20"]
[WhiteElo "1931"]
[BlackElo "2209"]
[Annotator "ChessBase"]
[PlyCount "56"]
[EventDate "2022.07.18"]
[EventCountry "NED"]
[SourceTitle "playchess.com"]
[Source "ChessBase"]
[SourceQuality "1"]
[TimeControl "5400+30"]

1. d4 {[%emt 0:00:04]} d5 {[%emt 0:00:09]} 2. c4 {[%emt 0:00:18]} dxc4 {[%emt 0:00:28]} 3. e3 {[%emt 0:00:25]} b6 {[%emt 0:06:20]} 4. Bxc4 {[%emt 0:08:44]} Bb7 {[%emt 0:04:40]} 5. Nf3 {[%emt 0:00:43]} e6 {[%emt 0:02:12]} 6. Nc3 {[%emt 0:04:15]} a6 {[%emt 0:07:55]} 7. O-O {[%emt 0:05:49]} Nf6 {[%emt 0:05:11]} 8. a3 {[%emt 0:02:40]} Nbd7 {[%emt 0:02:21]} 9. b4 {[%emt 0:03:40]} Ra7 {[%emt 0:20:19]} 10. d5 {[%emt 0:13:22]} exd5 {[%emt 0:04:32]} 11. Nxd5 {[%emt 0:00:22]} Nxd5 {[%emt 0:02:39]} 12. Bxd5 {[%emt 0:00:13]} Qf6 {[%emt 0:00:26]} 13. Rb1 {[%emt 0:04:58]} Bd6 {[%emt 0:05:07]} 14. Bb2 {[%emt 0:01:04]} Qh6 {[%emt 0:04:15]} 15. e4 {[%emt 0:06:22]} Bxd5 {[%emt 0:12:30]} 16. Qxd5 {[%emt 0:00:50]} c6 {[%emt 0:02:06]} 17. Qf5 {[%emt 0:03:57]} O-O {[%emt 0:02:19]} 18. e5 {[%emt 0:01:43]} Be7 {[%emt 0:01:26]} 19. Rbd1 {[%emt 0:01:43]} Rd8 {[%emt 0:01:20]} 20. Nd4 {[%emt 0:06:38]} c5 {[%emt 0:01:29]} 21. e6 {[%emt 0:02:40]} fxe6 {[%emt 0:02:35]} 22. Nxe6 {[%emt 0:00:54]} g6 {[%emt 0:00:47]} 23. Qd5 {[%emt 0:08:37]} Nf6 {[%emt 0:00:25]} 24. Qb3 {[%emt 0:00:51]} Rxd1 {[%emt 0:01:02]} 25. Rxd1 {[%emt 0:00:26]} Qh4 {[%emt 0:01:42]} 26. g3 {[%emt 0:08:15]} c4 {[%emt 0:02:23]} 27. Qf3 {[%emt 0:01:34]} Qe4 {[%emt 0:01:33]} 28. Kg2 {[%emt 0:01:54]} b5 {[%emt 0:01:43]} 1/2-1/2

[Event "10th Amsterdam Science Park 2022"]
[Site "Amsterdam"]
[Date "2022.07.21"]
[Round "4.9"]
[White "Baarslag, Ed"]
[Black "Brouwer, Rein"]
[Result "1-0"]
[ECO "D11"]
[WhiteElo "2161"]
[BlackElo "2076"]
[Annotator "TA"]
[PlyCount "83"]
[EventDate "2022.07.18"]
[EventCountry "NED"]
[SourceTitle "playchess.com"]
[Source "ChessBase"]
[SourceQuality "1"]
[TimeControl "5400+30"]

{[%evp 9,83,0,1,0,12,-20,-10,-7,0,-7,6,-10,0,-41,10,7,31,35,83,86,78,78,79,86,72,64,60,0,28,0,31,7,18,14,64,-37,58,57,64,45,59,73,86,45,47,47,61,69,154,160,291,325,346,337,293,317,341,336,318,321,322,320,307,227,203,180,216,202,193,163,172,169,1749,1742,921,804]} 1. d4 {[%emt 0:01:58]} d5 {[%emt 0:07:10]} 2. Nf3 {[%emt 0:00:19]} Nf6 {[%emt 0:00:09]} 3. g3 {[%emt 0:00:13]} Bf5 {[%emt 0:01:42]} 4. Bg2 {[%emt 0:00:24]} e6 {[%emt 0:00:17]} 5. c4 {[%emt 0:02:10]} c6 {[%emt 0:04:39]} 6. Qb3 {[%emt 0:01:37] D11: Slav Defence: 3 Nf3 sidelines and 3...Nf6 4 e3 Bg4.} Qb6 {[%emt 0:02:32]} 7. c5 {[%emt 0:01:15]} Qxb3 {[%emt 0:03:04]} 8. axb3 {[%emt 0:00:13] The position is equal.} Na6 {[%emt 0:02:02]} 9. Nc3 {[%emt 0:01:30]} h6 {[%emt 0:09:59] [#]} 10. h4 $146 {[%emt 0:07:49]} ({Predecessor:} 10. Ra4 Bc2 11. O-O Bxb3 12. Ra3 Bc2 13. Bd2 Nc7 14. Bf4 Nb5 15. Nxb5 cxb5 16. Rfa1 {1-0 (38) Hess,M (2392)-Wagner,D (2584) Chess.com INT 2022}) 10... Be7 {[%emt 0:03:08]} 11. Bf4 {[%emt 0:14:33]} O-O {[%emt 0:03:55]} (11... Nd7 $1 $15) 12. Ra4 {[%emt 0:02:34]} Bc2 {[%emt 0:02:49]} 13. Ne5 {[%emt 0:13:03][%cal Oe5c6] Strongly threatening Nxc6!} Nh5 {[%emt 0:07:34] [#]} (13... Nb8 $14) 14. Be3 $1 $16 {[%emt 0:08:45][%cal Oe5c6]} Nb8 {[%emt 0:11:51]} 15. Kd2 {[%emt 0:02:23]} Bh7 {[%emt 0:03:26]} (15... Bxb3 $2 16. Rb4 $18) 16. b4 {[%emt 0:02:00] 0x0.0024b310586ddp-1022s more active pieces.} Nf6 {[%emt 0:04:23]} 17. Rha1 {[%emt 0:04:26]} a6 {[%emt 0:05:32]} 18. f3 {[%emt 0:05:36]} (18. b5 $14) 18... Ne8 {[%emt 0:00:33]} (18... Nbd7 $5 {[%cal Rd7e5]}) 19. b5 {[%emt 0:02:52]} f6 {[%emt 0:00:55]} 20. Nd3 {[%emt 0:01:34]} Bxd3 {[%emt 0:02:18]} 21. Kxd3 {[%emt 0:02:26]} Nc7 {[%emt 0:03:25]} (21... cxb5 $11 22. Nxb5 Nc6) 22. bxa6 {[%emt 0:02:55]} (22. b6 $14 Nb5 23. Ra5) 22... Rxa6 {[%emt 0:00:20]} ({Better is} 22... Nbxa6 $15 23. Bh3 e5) 23. b4 $14 {[%emt 0:02:16]} e5 {[%emt 0:01:57]} 24. Bh3 {[%emt 0:00:46]} exd4 {[%emt 0:02:10]} 25. Bxd4 {[%emt 0:00:20]} Rxa4 {[%emt 0:00:10]} 26. Nxa4 {[%emt 0:02:58]} Nba6 {[%emt 0:00:24]} 27. Rb1 {[%emt 0:00:30]} Kf7 {[%emt 0:00:53]} 28. Nb6 {[%emt 0:00:26] And now Bc8 would win.} h5 {[%emt 0:02:29]} ({Black should try} 28... Rb8 $14) 29. Bc8 $16 {[%emt 0:01:21] This bishop pair is nice.} Nb8 {[%emt 0:02:00]} (29... Ne6 $16 {is a better defense.} 30. Bxb7 Nxb4+ 31. Rxb4 Bxc5) 30. Bxb7 $18 {[%emt 0:00:40]} Nb5 {[%emt 0:00:29]} 31. Ra1 {[%emt 0:03:42]} Bd8 {[%emt 0:03:41]} 32. Nc8 {[%emt 0:00:45] Black must now prevent Nd6+.} Bc7 {[%emt 0:00:14] Inhibits Nd6+.} 33. Bf2 {[%emt 0:01:50]} Ke6 {[%emt 0:02:58]} 34. Na7 {[%emt 0:02:35]} Nxa7 {[%emt 0:03:29]} 35. Rxa7 {[%emt 0:00:03]} Kd7 {[%emt 0:00:57]} 36. b5 {[%emt 0:02:13]} cxb5 {[%emt 0:00:13]} 37. Bxd5 {[%emt 0:00:15] Hoping for Kc3.} Nc6 {[%emt 0:00:35]} 38. Bxc6+ {[%emt 0:00:29]} Kxc6 {[%emt 0:00:02]} 39. Ra6+ {[%emt 0:01:04]} Kb7 {[%emt 0:00:17] [#]} 40. Re6 {[%emt 0:01:11]} Rf7 $2 {[%emt 0:03:13]} (40... Rd8+ 41. Kc2 Kc8) 41. c6+ {[%emt 0:00:00]} Ka6 {[%emt 0:00:00]} 42. Re8 {[%emt 0:00:00] Weighted Error Value: White=0.14 (very precise) /Black=0.20 (precise)} 1-0

[Event "10th Amsterdam Science Park 2022"]
[Site "Amsterdam"]
[Date "2022.07.21"]
[Round "4.10"]
[White "Vroombout, Enrico"]
[Black "Berrevoets, Jeroen"]
[Result "1-0"]
[ECO "D80"]
[WhiteElo "2125"]
[BlackElo "2064"]
[Annotator "NA"]
[PlyCount "77"]
[EventDate "2022.07.18"]
[EventCountry "NED"]
[SourceTitle "playchess.com"]
[Source "ChessBase"]
[SourceQuality "1"]
[TimeControl "5400+30"]

1. d4 {[%emt 0:00:08]} Nf6 {[%emt 0:05:46]} 2. c4 {[%emt 0:00:15]} g6 {[%emt 0:00:36]} 3. Nc3 {[%emt 0:00:03]} d5 {[%emt 0:01:09]} 4. h4 {[%emt 0:00:16]} c6 {[%emt 0:16:55]} 5. cxd5 {[%emt 0:06:10]} cxd5 {[%emt 0:00:15]} 6. Bg5 {[%emt 0:00:08]} Bg7 {[%emt 0:11:12]} 7. Qb3 {[%emt 0:08:10]} e6 {[%emt 0:04:54]} 8. Nf3 {[%emt 0:04:27]} h6 {[%emt 0:03:05]} 9. Bf4 {[%emt 0:02:07]} O-O {[%emt 0:00:59]} 10. e3 {[%emt 0:05:51]} b6 {[%emt 0:03:04]} 11. Nb5 {[%emt 0:08:09]} a6 {[%emt 0:09:15]} 12. Nc7 {[%emt 0:08:48]} Ra7 {[%emt 0:00:07]} 13. Nxd5 {[%emt 0:00:09]} exd5 {[%emt 0:07:16]} 14. Bxb8 {[%emt 0:02:16]} Ra8 {[%emt 0:00:15]} 15. Bf4 {[%emt 0:05:15]} b5 {[%emt 0:03:51]} 16. Bd3 {[%emt 0:07:17]} Be6 {[%emt 0:00:05]} 17. Rc1 {[%emt 0:06:37]} Ne4 {[%emt 0:00:38]} 18. Qa3 {[%emt 0:12:02]} Re8 {[%emt 0:01:03]} 19. Bc7 {[%emt 0:01:29]} Rc8 {[%emt 0:00:44]} 20. Qa5 {[%emt 0:00:27]} Qe7 {[%emt 0:06:31]} 21. O-O {[%emt 0:06:04]} Bf5 {[%emt 0:03:02]} 22. Bf4 {[%emt 0:01:35]} Ng3 {[%emt 0:05:57]} 23. Bxg3 {[%emt 0:01:49]} Bxd3 {[%emt 0:00:05]} 24. Rfd1 {[%emt 0:04:27]} Bc2 {[%emt 0:04:22]} 25. Rd2 {[%emt 0:05:10]} Be4 {[%emt 0:00:07]} 26. Rdd1 {[%emt 0:01:04]} Bc2 {[%emt 0:00:07]} 27. Re1 {[%emt 0:00:06]} Rc6 {[%emt 0:00:29]} 28. a4 {[%emt 0:00:38]} Rec8 {[%emt 0:02:39]} 29. axb5 {[%emt 0:00:11]} axb5 {[%emt 0:00:05]} 30. Qxb5 {[%emt 0:01:06]} Bd3 {[%emt 0:00:52]} 31. Rxc6 {[%emt 0:00:10]} Bxb5 {[%emt 0:00:01]} 32. Rxc8+ {[%emt 0:00:03]} Kh7 {[%emt 0:00:15]} 33. Rc7 {[%emt 0:00:48]} Qe8 {[%emt 0:00:56]} 34. Ra1 {[%emt 0:01:05]} Bd7 {[%emt 0:00:37]} 35. Raa7 {[%emt 0:00:09]} Be6 {[%emt 0:00:04]} 36. Ne5 {[%emt 0:01:38]} Bxe5 {[%emt 0:00:47]} 37. Bxe5 {[%emt 0:00:04]} g5 {[%emt 0:00:08]} 38. h5 {[%emt 0:01:00]} Qb5 {[%emt 0:03:16]} 39. Ra8 {[%emt 0:00:36]} 1-0

[Event "10th Amsterdam Science Park 2022"]
[Site "Amsterdam"]
[Date "2022.07.22"]
[Round "5.1"]
[White "Van Delft, Merijn"]
[Black "Bosboom, Manuel"]
[Result "1/2-1/2"]
[ECO "B90"]
[WhiteElo "2383"]
[BlackElo "2381"]
[Annotator "TA"]
[PlyCount "55"]
[EventDate "2022.07.18"]
[EventCountry "NED"]
[SourceTitle "playchess.com"]
[Source "ChessBase"]
[SourceQuality "1"]
[TimeControl "5400+30"]

{[%evp 10,55,34,8,51,56,60,18,45,-41,-54,-48,-31,-53,-16,-70,0,-15,66,57,94,14,115,115,184,0,0,0,0,0,18,0,0,-162,-135,-156,-160,-133,0,0,0,0,0,0,0,0,0,0]} 1. e4 {[%emt 0:00:06]} c5 {[%emt 0:00:33]} 2. Nf3 {[%emt 0:00:08]} d6 {[%emt 0:00:11]} 3. d4 {[%emt 0:00:04]} cxd4 {[%emt 0:00:03]} 4. Nxd4 {[%emt 0:00:09]} Nf6 {[%emt 0:00:10]} 5. Nc3 {[%emt 0:00:06]} a6 {[%emt 0:00:45]} 6. h3 {[%emt 0:00:06]} h5 {[%emt 0:04:17] B90: Sicilian Najdorf: Unusual White 6th moves, 6 Be3 Ng4 and 6 Be3 e5.} (6... e5 $5 {[%cal Re5d4]} 7. Nb3 Be7 $11) 7. Bg5 {[%emt 0:01:27]} e6 {[%emt 0:00:59]} 8. f4 {[%emt 0:05:04]} b5 {[%emt 0:00:31] [#]} 9. e5 $146 {[%emt 0:04:50]} (9. a3 $14) ({Predecessor:} 9. a3 Bb7 10. Be2 Nbd7 11. Bf3 Qb6 12. Qd2 Rc8 13. O-O-O g6 14. Kb1 e5 15. Nb3 {½-½ (48) Petkov,M (2426)-Damljanovic,B (2501) Arandjelovac 2021}) 9... dxe5 $15 {[%emt 0:00:36]} 10. fxe5 {[%emt 0:00:17] [#]} Qc7 $1 {[%emt 0:00:19]} 11. Qe2 {[%emt 0:01:26]} Nbd7 {[%emt 0:13:26][%cal Bb8d7,Bd7f6,Bf6e4][%mdl 32]} 12. Nf3 {[%emt 0:14:11]} (12. exf6 $11 Qg3+ 13. Qf2 Qxg5 14. Qf3 Qh4+ 15. g3 Qxd4 16. Qxa8 Qe3+ 17. Be2 Qxg3+ 18. Kd1) 12... Ba3 {[%emt 0:07:51]} 13. Bc1 {[%emt 0:16:20]} (13. exf6 Bxb2 14. Nd5 Qg3+ 15. Qf2 Qxf2+ 16. Kxf2 exd5 17. Re1+ Kf8 18. fxg7+ Kxg7 $17) 13... Bb7 {[%emt 0:07:31]} 14. exf6 $14 {[%emt 0:05:12]} Nxf6 {[%emt 0:00:57][%cal Oe8g8]} 15. Nxb5 {[%emt 0:28:44]} (15. Qe3 $1 $16 Be7 16. Bd3) 15... axb5 {[%emt 0:01:08]} (15... Qg3+ $1 $11 {remains equal.} 16. Qf2 Qxf2+ 17. Kxf2 Bc5+ 18. Nbd4 (18. Be3 Ne4+ 19. Ke1 Bxe3 $15) 18... Bxf3) 16. bxa3 $16 {[%emt 0:02:36] Hoping for Qe5.} (16. Qxb5+ Kf8 17. Kd1 Bxf3+ 18. gxf3 Rd8+ 19. Bd3 Qg3 $1 $17) 16... O-O-O {[%emt 0:09:07]} (16... O-O $16 17. Qe5 Qxc2) 17. Qe5 $2 {[%emt 0:03:13]} (17. Qxb5 Qc3+ 18. Kf2 Ne4+ 19. Kg1 Qxa1 20. Qc4+ Kd7 21. Qb5+ (21. Bg5 $2 Nxg5 22. Nxg5 Ke8 $19) 21... Kc8 22. Qc4+ Kd7 23. Qb5+ (23. Bg5 $2 Nxg5 24. Nxg5 Ke8 $19) 23... Kc8 $11) ({White should try} 17. Kf2 $1 $18 {[%cal Rf2g1]}) 17... Rd1+ $1 $11 {[%emt 0:03:24]} 18. Kf2 {[%emt 0:00:59][%cal Be1f2,Bf2g1,Bg1h2][%mdl 32] Black must now prevent Qxc7+.} Ne4+ {[%emt 0:00:29]} 19. Kg1 {[%emt 0:02:14]} Qb6+ {[%emt 0:04:21]} (19... Qc4 $2 20. Kh2 $1 Rxf1 21. Bf4 Rxh1+ 22. Rxh1 $18) 20. Kh2 {[%emt 0:00:18]} f6 {[%emt 0:00:58][%cal Bf7f6,Bf6g5][%mdl 32]} 21. Qf4 {[%emt 0:05:54]} (21. Qxb5 $11 {and White stays safe.} Qd6+ 22. Ne5 $1 (22. Kg1 $2 Ba6 $19)) 21... g5 $19 {[%emt 0:00:27]} 22. Nxg5 {[%emt 0:00:09]} fxg5 {[%emt 0:14:42]} 23. Qe5 {[%emt 0:00:03] [#]} Rhd8 {[%emt 0:00:36]} (23... Rf8 $1 $17 24. Be3 (24. Bxb5 $2 Rf2 $19) 24... Qxe3 25. Rxd1 g4 26. Qxe6+ Kb8 27. Qe5+ Ka8) 24. Bd3 {[%emt 0:00:45] Chess con chili. The position is equal.} Rxh1+ {[%emt 0:07:45]} 25. Kxh1 {[%emt 0:00:02]} Nf2+ {[%emt 0:02:00]} 26. Kh2 {[%emt 0:00:24]} Nxd3 {[%emt 0:09:39]} 27. cxd3 {[%emt 0:00:47]} Qd6 {[%emt 0:02:28]} 28. Qxd6 {[%emt 0:01:39] Weighted Error Value: White=0.42/Black=0.38} 1/2-1/2

[Event "10th Amsterdam Science Park 2022"]
[Site "Amsterdam"]
[Date "2022.07.22"]
[Round "5.2"]
[White "Blom, Vincent"]
[Black "Zwirs, Nico"]
[Result "1-0"]
[ECO "D43"]
[WhiteElo "2325"]
[BlackElo "2485"]
[Annotator "TA"]
[PlyCount "159"]
[EventDate "2022.07.18"]
[EventCountry "NED"]
[SourceTitle "playchess.com"]
[Source "ChessBase"]
[SourceQuality "1"]
[TimeControl "5400+30"]

{[%evp 13,159,12,10,-5,0,0,0,0,0,0,0,0,0,-48,-43,-46,-32,-40,-31,-55,-60,-55,-59,-72,-52,-59,-66,-64,-72,-99,-12,-45,2,2,2,-15,-23,-20,-1,-116,-64,-107,0,0,0,0,0,0,176,175,176,176,185,165,176,182,149,118,194,129,198,197,189,125,204,195,208,62,145,25,25,25,25,25,25,25,26,27,41,19,139,19,121,132,358,358,358,358,358,358,358,358,358,358,358,358,358,358,358,358,358,358,358,358,358,358,358,358,358,358,358,358,358,358,358,358,358,358,358,358,358,243,358,243,243,288,243,243,358,358,358,358,358,358,358,358,1265,358,513,481,29984,29976,29982,29983,29989,29990,29990,29991]} 1. c4 {[%emt 0:00:14]} e6 {[%emt 0:00:02]} 2. Nf3 {[%emt 0:00:07]} d5 {[%emt 0:00:05]} 3. d4 {[%emt 0:00:10]} Nf6 {[%emt 0:00:07]} 4. Nc3 {[%emt 0:00:08]} dxc4 {[%emt 0:00:43]} 5. Qa4+ {[%emt 0:02:11]} c6 {[%emt 0:04:58]} 6. Qxc4 {[%emt 0:00:33]} b5 {[%emt 0:00:05]} 7. Qd3 {[%emt 0:00:32]} Bb7 {[%emt 0:00:28]} 8. Bg5 {[%emt 0:07:46] D43: Semi-Slav: 5 Bg5 h6.} Nbd7 {[%emt 0:01:31]} 9. e4 {[%emt 0:14:17]} b4 {[%emt 0:00:36]} 10. Na4 {[%emt 0:02:37] The position is equal.} Qa5 {[%emt 0:00:30]} 11. b3 {[%emt 0:04:08]} c5 {[%emt 0:01:09]} 12. Bxf6 {[%emt 0:09:41]} gxf6 {[%emt 0:00:43]} 13. d5 {[%emt 0:11:11]} (13. Be2 $11 {feels stronger.}) 13... O-O-O $15 {[%emt 0:01:12]} 14. dxe6 {[%emt 0:10:27]} Nb6 $36 {[%emt 0:01:45][%mdl 2048] White is under pressure.} (14... Ne5 15. Qb5 Qc7 16. exf7 $11) 15. Nxb6+ $1 {[%emt 0:07:32]} Qxb6 {[%emt 0:01:58]} 16. Qc4 {[%emt 0:07:03] [#]} Qxe6 $146 {[%emt 0:18:20]} ({Predecessor:} 16... fxe6 17. Bd3 Rg8 18. O-O f5 19. Rfd1 Bg7 20. Rac1 Bc3 21. g3 fxe4 22. Bxe4 Rxd1+ 23. Rxd1 Ba6 {0-1 (23) Hercog,N (2031)-Velikic,A (2323) Maribor 2019}) 17. Qxe6+ {[%emt 0:01:37]} fxe6 {[%emt 0:01:57]} 18. e5 {[%emt 0:00:50]} fxe5 {[%emt 0:04:37] aiming for ...e4.} 19. Ng5 {[%emt 0:05:33]} Bh6 {[%emt 0:09:00]} 20. h4 {[%emt 0:02:35]} Rd4 {[%emt 0:26:00] Threatens to win with ...Bxg5.} 21. f3 {[%emt 0:04:06]} Re8 {[%emt 0:16:03]} (21... e4 $17 {Hoping for ...exf3.} 22. Rc1 (22. Nxe6 $2 Bd2+ 23. Kf2 Bc3 $19) 22... Rd5) 22. Rc1 $11 {[%emt 0:00:25]} e4 {[%emt 0:01:09]} (22... Kb8 $15) 23. Rxc5+ {[%emt 0:01:56]} Kb8 {[%emt 0:00:00]} 24. Be2 {[%emt 0:03:00]} (24. fxe4 Bxg5 25. hxg5 Rxe4+ 26. Kf2 Rf8+ 27. Kg3 Re1 $17) 24... e3 {[%emt 0:04:22] ...Rd2 is the strong threat.} 25. Re5 {[%emt 0:01:33]} Rc8 {[%emt 0:00:18]} 26. O-O {[%emt 0:01:50]} (26. Bc4 $11) 26... Rxh4 {[%emt 0:02:01]} ({Worse is} 26... Rc2 27. Rxe3 Bd5 28. f4 $15) (26... Rd2 $1 $17 {[%cal Rd2e2]} 27. Re1 Bg7 28. Rxe6 Bd5) 27. f4 {[%emt 0:01:00]} Rc2 {[%emt 0:01:40]} (27... Bg7 $17 28. Rxe6 Bd4) 28. Rxe3 {[%emt 0:00:10]} Bxg5 {[%emt 0:01:04]} 29. fxg5 {[%emt 0:00:08]} Re4 {[%emt 0:00:25]} 30. Rf8+ {[%emt 0:00:34]} Rc8 $2 {[%emt 0:00:14]} (30... Kc7 $11 {and Black stays safe.} 31. Rf7+ Kd6) 31. Rxe4 $18 {[%emt 0:00:32]} Bxe4 {[%emt 0:00:04][%mdl 4096] Endgame KRB-KRB} 32. Rf4 {[%emt 0:00:10]} Rc1+ {[%emt 0:02:30]} 33. Kf2 {[%emt 0:00:32]} Bb1 {[%emt 0:00:17]} 34. Rxb4+ {[%emt 0:00:33]} Kc7 {[%emt 0:00:00]} 35. Ra4 {[%emt 0:01:30]} Kb7 {[%emt 0:00:28]} (35... Kb6 $16 {was necessary.}) 36. Ke3 {[%emt 0:00:42]} ({White should play} 36. Bf3+ $18 Kb8 37. Be4 Bxe4 38. Rxe4) 36... Rc5 {[%emt 0:00:42]} (36... Kb6 $16 37. Ra6+ Kb7 38. Rxe6 Bxa2) 37. Bf3+ $1 {[%emt 0:00:18]} Kb8 {[%emt 0:01:09]} 38. Kf4 {[%emt 0:00:42]} (38. Rb4+ $18 Kc8 39. a3) 38... e5+ {[%emt 0:00:36]} (38... Rf5+ $16 39. Kg4 Re5) 39. Kg4 {[%emt 0:00:13]} Bg6 {[%emt 0:00:28]} 40. Rb4+ {[%emt 0:00:36]} (40. Be4 $18) 40... Kc8 {[%emt 0:00:17]} ({Better is} 40... Kc7 $1 $14) 41. Be4 {[%emt 0:00:00]} (41. Rc4 $16 Rxc4+ 42. bxc4) 41... a5 $1 $11 {[%emt 0:00:00]} 42. Ra4 {[%emt 0:00:00] Black must now prevent Bxg6.} Kd7 {[%emt 0:00:00]} 43. Bxg6 {[%emt 0:00:00]} hxg6 {[%emt 0:00:00] KR-KR} 44. Kf3 {[%emt 0:00:00]} Ke6 {[%emt 0:00:00]} 45. Rc4 {[%emt 0:00:00]} Rb5 {[%emt 0:00:00]} 46. g4 {[%emt 0:00:41]} (46. Ke4 $5 {[%cal Rc4c6]}) 46... Kd7 {[%emt 0:00:00] [#] Prevents Rc6.} (46... Kd5 $11) 47. Rc2 {[%emt 0:00:32]} ({Only move:} 47. Rc3 $1 $16) 47... Rb4 {[%emt 0:00:00] [#]} (47... a4 $11 {remains equal.}) 48. Rc5 $1 $16 {[%emt 0:00:15][%csl LRa5,LRe5]} a4 $2 {[%emt 0:00:00] This move loses the game for Black.} (48... Rf4+ $16 49. Kg3 a4) 49. Rc4 $18 {[%emt 0:00:32]} ({Less strong is} 49. Rxe5 axb3 50. axb3 Rxb3+ 51. Kf4 Ra3 $14) 49... Rxc4 {[%emt 0:01:58]} 50. bxc4 {[%emt 0:00:07] KP-KP} Kc6 {[%emt 0:00:35]} 51. Ke4 {[%emt 0:01:06]} Kd6 {[%emt 0:00:07]} 52. c5+ {[%emt 0:01:21]} Kxc5 {[%emt 0:02:00] ( -> ...Kd6)} 53. Kxe5 {[%emt 0:00:03] K3P-KPP} Kb4 {[%emt 0:00:05]} 54. Kf6 {[%emt 0:00:04]} Ka3 {[%emt 0:00:04]} 55. Kxg6 {[%emt 0:00:02]} Kxa2 {[%emt 0:00:05] KPP-KP} 56. Kh7 {[%emt 0:02:30] White threatens g6 and mate.} Kb1 {[%emt 0:00:07]} 57. g6 {[%emt 0:00:03] Threatening mate with g7.} a3 {[%emt 0:00:03]} 58. g7 {[%emt 0:00:01]} a2 {[%emt 0:00:01]} 59. g8=Q {[%emt 0:00:06][%cal Og8a2] Intending Qxa2+! and mate.} a1=Q {[%emt 0:00:03] KQ-KQ} 60. Qb3+ {[%emt 0:00:50]} Kc1 {[%emt 0:00:02]} 61. Qe3+ {[%emt 0:00:07]} Kc2 {[%emt 0:00:15]} 62. Qe2+ {[%emt 0:00:28]} Kb3 {[%emt 0:00:13]} 63. Qd3+ {[%emt 0:00:02]} Kb4 {[%emt 0:00:14]} 64. Qe4+ {[%emt 0:00:09]} ({But not} 64. g5 Qh1+ 65. Kg7 Qb7+ 66. Kf6 Qb6+ 67. Ke5 Qc5+ 68. Kf4 Qc1+ 69. Qe3 Qf1+ 70. Kg3 Kb5 $18) 64... Kb3 {[%emt 0:01:14]} 65. g5 {[%emt 0:00:28]} Qa7+ {[%emt 0:01:10]} 66. Kh6 {[%emt 0:00:29]} Qd7 {[%emt 0:02:02]} 67. Qf3+ {[%emt 0:00:16]} Ka4 {[%emt 0:01:58]} (67... Kb2 $142 68. Qg2+ Kb1 69. Qe4+ Kb2 70. Qe2+ Kc1 71. Qe1+ Kc2 72. Qf2+ Kc1) 68. Qf4+ {[%emt 0:00:28]} Ka3 {[%emt 0:00:22]} 69. g6 {[%emt 0:00:19]} Qh3+ {[%emt 0:00:23]} 70. Kg7 {[%emt 0:00:09]} Qd7+ {[%emt 0:00:45]} (70... Ka2 $142 71. Kf6 Qc3+ 72. Qe5 Qf3+ 73. Ke7 Qb7+ 74. Ke6 Qc6+ 75. Qd6 Qe8+ 76. Kf6 Qh8+ 77. Kf7 Qh5) 71. Kg8 {[%emt 0:00:27]} Qe6+ {[%emt 0:01:08]} 72. Qf7 {[%emt 0:00:04]} Qe5 {[%emt 0:00:51]} 73. g7 {[%emt 0:01:26]} Kb2 {[%emt 0:00:56]} 74. Qf2+ {[%emt 0:01:03]} Kb1 $2 {[%emt 0:00:33]} (74... Kb3 75. Qf3+ Ka2) 75. Qb6+ $2 {[%emt 0:00:19]} (75. Kf7 Qc7+ 76. Kg6 Qd6+ 77. Kg5 Qd8+ 78. Qf6 Qd2+ 79. Kg6 Qg2+ 80. Qg5 Qc6+ 81. Qf6 Qg2+ 82. Qg5 Qc6+ 83. Qf6 Qg2+) 75... Kc1 {[%emt 0:00:25]} (75... Ka1 $142 76. Qg6 Qh2) 76. Kh7 {[%emt 0:00:34]} Qe7 {[%emt 0:00:33]} (76... Qf5+ $18 77. Qg6 Qd7) 77. Qg1+ {[%emt 0:01:14] White mates.} Kb2 {[%emt 0:00:21]} 78. Qd4+ {[%emt 0:00:02]} Kb1 {[%emt 0:00:33]} 79. Kh8 {[%emt 0:00:12]} Qe6 {[%emt 0:00:32]} 80. g8=Q {[%emt 0:00:30] Weighted Error Value: White=0.21 (precise) /Black=0.34} 1-0